[Event "December 12 Early 2023"]
[Site "https://www.chess.com"]
[Date "2023.12.12"]
[Round "7"]
[White "Klukin, Kirill"]
[Black "Khismatullin, Denis"]
[Result "1/2-1/2"]
[Board "18"]
[TimeControl "180+1"]
[WhiteFideId "24199273"]
[BlackFideId "4142578"]
[WhiteElo "2806"]
[BlackElo "2977"]
[WhiteTeam "RUS"]
[BlackTeam "RUS"]
[WhiteClock "0:00:18"]
[BlackClock "0:00:21"]

1. d4 {[%clk 0:03:00]}  Nf6 {[%clk 0:02:58]} 2. Nf3 {[%clk 0:03:00]}  e6 {[%clk 0:02:58]} 3. c4 {[%clk 0:02:59]}  Bb4+ {[%clk 0:02:56]} 4. Nc3 {[%clk 0:02:59]}  Bxc3+ {[%clk 0:02:55]} 5. bxc3 {[%clk 0:02:57]}  d6 {[%clk 0:02:55]} 6. Bg5 {[%clk 0:02:47]}  h6 {[%clk 0:02:54]} 7. Bh4 {[%clk 0:02:40]}  g5 {[%clk 0:02:53]} 8. Bg3 {[%clk 0:02:40]}  Ne4 {[%clk 0:02:53]} 9. Qc2 {[%clk 0:02:41]}  f5 {[%clk 0:02:51]} 10. e3 {[%clk 0:02:36]}  Nd7 {[%clk 0:02:50]} 11. Bd3 {[%clk 0:02:26]}  Ndf6 {[%clk 0:02:50]} 12. Nd2 {[%clk 0:02:23]}  Nxd2 {[%clk 0:02:36]} 13. Qxd2 {[%clk 0:02:23]}  b6 {[%clk 0:02:36]} 14. f3 {[%clk 0:02:19]}  Bb7 {[%clk 0:02:36]} 15. a4 {[%clk 0:02:18]}  Qe7 {[%clk 0:02:30]} 16. a5 {[%clk 0:02:16]}  O-O {[%clk 0:02:16]} 17. axb6 {[%clk 0:02:14]}  axb6 {[%clk 0:02:15]} 18. O-O {[%clk 0:02:14]}  Nh5 {[%clk 0:02:09]} 19. Bf2 {[%clk 0:01:40]}  e5 {[%clk 0:02:06]} 20. Qc2 {[%clk 0:01:20]}  e4 {[%clk 0:02:01]} 21. fxe4 {[%clk 0:01:19]}  Bxe4 {[%clk 0:01:59]} 22. Bxe4 {[%clk 0:01:19]}  Qxe4 {[%clk 0:01:58]} 23. Qxe4 {[%clk 0:01:16]}  fxe4 {[%clk 0:01:59]} 24. Rfb1 {[%clk 0:00:56]}  Nf6 {[%clk 0:01:54]} 25. h3 {[%clk 0:00:53]}  Kg7 {[%clk 0:01:53]} 26. Bg3 {[%clk 0:00:53]}  Nd7 {[%clk 0:01:52]} 27. Kh2 {[%clk 0:00:43]}  Kg6 {[%clk 0:01:53]} 28. Kg1 {[%clk 0:00:28]}  Kf7 {[%clk 0:01:38]} 29. Rf1+ {[%clk 0:00:27]}  Ke6 {[%clk 0:01:36]} 30. Kh2 {[%clk 0:00:24]}  Nf6 {[%clk 0:01:21]} 31. c5 {[%clk 0:00:04]}  bxc5 {[%clk 0:01:04]} 32. dxc5 {[%clk 0:00:04]}  Rxa1 {[%clk 0:01:03]} 33. Rxa1 {[%clk 0:00:04]}  Nd5 {[%clk 0:01:04]} 34. cxd6 {[%clk 0:00:04]}  cxd6 {[%clk 0:01:04]} 35. Rd1 {[%clk 0:00:03]}  Rd8 {[%clk 0:01:03]} 36. Rd4 {[%clk 0:00:02]}  Nf6 {[%clk 0:00:55]} 37. c4 {[%clk 0:00:02]}  Rd7 {[%clk 0:00:55]} 38. Kg1 {[%clk 0:00:03]}  d5 {[%clk 0:00:52]} 39. c5 {[%clk 0:00:02]}  Ra7 {[%clk 0:00:48]} 40. c6 {[%clk 0:00:02]}  Ra1+ {[%clk 0:00:47]} 41. Kh2 {[%clk 0:00:03]}  Rc1 {[%clk 0:00:46]} 42. c7 {[%clk 0:00:03]}  h5 {[%clk 0:00:46]} 43. h4 {[%clk 0:00:01]}  Ng4+ {[%clk 0:00:44]} 44. Kh3 {[%clk 0:00:02]}  Rh1+ {[%clk 0:00:42]} 45. Bh2 {[%clk 0:00:02]}  Rc1 {[%clk 0:00:27]} 46. hxg5 {[%clk 0:00:02]}  Nxh2 {[%clk 0:00:27]} 47. Kxh2 {[%clk 0:00:02]}  Rxc7 {[%clk 0:00:27]} 48. Kg3 {[%clk 0:00:03]}  Rd7 {[%clk 0:00:25]} 49. Kh4 {[%clk 0:00:03]}  Kf5 {[%clk 0:00:25]} 50. Rd1 {[%clk 0:00:04]}  Kg6 {[%clk 0:00:24]} 51. Rf1 {[%clk 0:00:04]}  d4 {[%clk 0:00:24]} 52. exd4 {[%clk 0:00:04]}  Rxd4 {[%clk 0:00:24]} 53. Rf6+ {[%clk 0:00:05]}  Kg7 {[%clk 0:00:24]} 54. Kxh5 {[%clk 0:00:05]}  Rd2 {[%clk 0:00:23]} 55. Re6 {[%clk 0:00:05]}  Rxg2 {[%clk 0:00:23]} 56. Rxe4 {[%clk 0:00:05]}  Rh2+ {[%clk 0:00:23]} 57. Kg4 {[%clk 0:00:05]}  Ra2 {[%clk 0:00:22]} 58. Re7+ {[%clk 0:00:05]}  Kg6 {[%clk 0:00:22]} 59. Re6+ {[%clk 0:00:06]}  Kf7 {[%clk 0:00:22]} 60. Rb6 {[%clk 0:00:07]}  Kg7 {[%clk 0:00:22]} 61. Kf5 {[%clk 0:00:06]}  Rf2+ {[%clk 0:00:21]} 62. Kg4 {[%clk 0:00:06]}  Rg2+ {[%clk 0:00:21]} 63. Kh5 {[%clk 0:00:07]}  Rh2+ {[%clk 0:00:21]} 64. Kg4 {[%clk 0:00:07]}  Rg2+ {[%clk 0:00:21]} 65. Kf4 {[%clk 0:00:08]}  Rf2+ {[%clk 0:00:21]} 66. Kg3 {[%clk 0:00:09]}  Rf1 {[%clk 0:00:21]} 67. Rb4 {[%clk 0:00:09]}  Rg1+ {[%clk 0:00:21]} 68. Kf4 {[%clk 0:00:09]}  Rf1+ {[%clk 0:00:21]} 69. Kg4 {[%clk 0:00:10]}  Rg1+ {[%clk 0:00:21]} 70. Kf5 {[%clk 0:00:10]}  Rf1+ {[%clk 0:00:21]} 71. Rf4 {[%clk 0:00:11]}  Rxf4+ {[%clk 0:00:20]} 72. Kxf4 {[%clk 0:00:12]}  Kg6 {[%clk 0:00:20]} 73. Kg4 {[%clk 0:00:13]}  Kg7 {[%clk 0:00:20]} 74. Kf5 {[%clk 0:00:14]}  Kf7 {[%clk 0:00:20]} 75. g6+ {[%clk 0:00:15]}  Kg7 {[%clk 0:00:21]} 76. Kg5 {[%clk 0:00:15]}  Kg8 {[%clk 0:00:21]} 77. Kh6 {[%clk 0:00:16]}  Kh8 {[%clk 0:00:21]} 78. g7+ {[%clk 0:00:17]}  Kg8 {[%clk 0:00:21]} 79. Kg6 {[%clk 0:00:18]} 1/2-1/2

[Event "December 12 Early 2023"]
[Site "https://www.chess.com"]
[Date "2023.12.12"]
[Round "7"]
[White "Sychev, Klementy"]
[Black "Yuan, Qingyu"]
[Result "1-0"]
[Board "20"]
[TimeControl "180+1"]
[WhiteFideId "4114060"]
[BlackFideId "8609772"]
[WhiteElo "2934"]
[BlackElo "2791"]
[WhiteTeam "FID"]
[BlackTeam "CHN"]
[WhiteClock "0:00:18"]
[BlackClock "0:00:02"]

1. e4 {[%clk 0:03:00]}  e5 {[%clk 0:03:00]} 2. Nc3 {[%clk 0:02:59]}  Nf6 {[%clk 0:03:00]} 3. f4 {[%clk 0:02:57]}  d5 {[%clk 0:03:00]} 4. fxe5 {[%clk 0:02:58]}  Nxe4 {[%clk 0:03:00]} 5. Qf3 {[%clk 0:02:59]}  Nc6 {[%clk 0:02:54]} 6. Bb5 {[%clk 0:02:58]}  Nxc3 {[%clk 0:02:54]} 7. dxc3 {[%clk 0:02:58]}  Qh4+ {[%clk 0:02:55]} 8. g3 {[%clk 0:02:52]}  Qe4+ {[%clk 0:02:51]} 9. Be3 {[%clk 0:02:50]}  Qxe5 {[%clk 0:02:27]} 10. O-O-O {[%clk 0:02:31]}  Be6 {[%clk 0:02:23]} 11. Ne2 {[%clk 0:02:07]}  O-O-O {[%clk 0:02:05]} 12. Bxc6 {[%clk 0:02:05]}  bxc6 {[%clk 0:02:05]} 13. Nd4 {[%clk 0:02:06]}  Kb7 {[%clk 0:01:50]} 14. Rhe1 {[%clk 0:02:04]}  Bd6 {[%clk 0:01:24]} 15. Nb3 {[%clk 0:01:49]}  Qf5 {[%clk 0:01:15]} 16. Na5+ {[%clk 0:01:22]}  Kc8 {[%clk 0:00:45]} 17. Qe2 {[%clk 0:01:21]}  Kd7 {[%clk 0:00:38]} 18. Qa6 {[%clk 0:01:21]}  Ra8 {[%clk 0:00:24]} 19. Qxc6+ {[%clk 0:00:58]}  Ke7 {[%clk 0:00:24]} 20. Bc5 {[%clk 0:00:59]}  Rhd8 {[%clk 0:00:17]} 21. Qxc7+ {[%clk 0:00:52]}  Ke8 {[%clk 0:00:12]} 22. Bxd6 {[%clk 0:00:48]}  Rd7 {[%clk 0:00:12]} 23. Qc6 {[%clk 0:00:47]}  Rd8 {[%clk 0:00:11]} 24. Bb4 {[%clk 0:00:44]}  h5 {[%clk 0:00:06]} 25. Nb7 {[%clk 0:00:37]}  Qg5+ {[%clk 0:00:04]} 26. Kb1 {[%clk 0:00:37]}  Rb8 {[%clk 0:00:04]} 27. Rxe6+ {[%clk 0:00:26]}  fxe6 {[%clk 0:00:05]} 28. Qxe6+ {[%clk 0:00:26]}  Re7 {[%clk 0:00:05]} 29. Qg8+ {[%clk 0:00:25]}  Kd7 {[%clk 0:00:05]} 30. Qxb8 {[%clk 0:00:25]}  Qg4 {[%clk 0:00:06]} 31. Rc1 {[%clk 0:00:19]}  Ke6 {[%clk 0:00:01]} 32. Qd6+ {[%clk 0:00:18]}  Kf5 {[%clk 0:00:02]} 33. Qxe7 {[%clk 0:00:18]}  Qe4 {[%clk 0:00:03]} 34. Nd6+ {[%clk 0:00:18]}  Kg4 {[%clk 0:00:02]} 35. Nxe4 {[%clk 0:00:18]} 1-0

[Event "December 12 Early 2023"]
[Site "https://www.chess.com"]
[Date "2023.12.12"]
[Round "7"]
[White "Gormally, Daniel W"]
[Black "Ilamparthi A R"]
[Result "0-1"]
[Board "23"]
[TimeControl "180+1"]
[WhiteFideId "406465"]
[BlackFideId "45015775"]
[WhiteElo "2767"]
[BlackElo "2878"]
[WhiteTeam "ENG"]
[BlackTeam "IND"]
[WhiteClock "0:00:34"]
[BlackClock "0:00:54"]

1. d4 {[%clk 0:03:00]}  Nf6 {[%clk 0:02:58]} 2. c4 {[%clk 0:03:00]}  g6 {[%clk 0:02:52]} 3. Nc3 {[%clk 0:02:59]}  Bg7 {[%clk 0:02:46]} 4. e4 {[%clk 0:03:00]}  d6 {[%clk 0:02:47]} 5. f3 {[%clk 0:03:00]}  O-O {[%clk 0:02:46]} 6. Bg5 {[%clk 0:03:00]}  c5 {[%clk 0:02:42]} 7. d5 {[%clk 0:03:00]}  a6 {[%clk 0:02:41]} 8. a4 {[%clk 0:02:59]}  e6 {[%clk 0:02:41]} 9. Qd2 {[%clk 0:02:56]}  exd5 {[%clk 0:02:41]} 10. cxd5 {[%clk 0:02:56]}  h6 {[%clk 0:02:38]} 11. Be3 {[%clk 0:02:56]}  Re8 {[%clk 0:02:36]} 12. Nge2 {[%clk 0:02:54]}  Nbd7 {[%clk 0:02:35]} 13. Ng3 {[%clk 0:02:55]}  h5 {[%clk 0:02:34]} 14. h4 {[%clk 0:02:54]}  Ne5 {[%clk 0:02:32]} 15. Be2 {[%clk 0:02:53]}  Bd7 {[%clk 0:02:31]} 16. Bg5 {[%clk 0:02:45]}  Rb8 {[%clk 0:02:26]} 17. O-O {[%clk 0:02:41]}  b5 {[%clk 0:02:22]} 18. axb5 {[%clk 0:02:41]}  axb5 {[%clk 0:02:23]} 19. Ra6 {[%clk 0:02:41]}  b4 {[%clk 0:02:19]} 20. Nd1 {[%clk 0:02:40]}  Qc7 {[%clk 0:02:16]} 21. Ne3 {[%clk 0:02:34]}  c4 {[%clk 0:02:15]} 22. Rc1 {[%clk 0:02:33]}  Bb5 {[%clk 0:02:14]} 23. Raa1 {[%clk 0:02:30]}  Rec8 {[%clk 0:02:13]} 24. Qxb4 {[%clk 0:02:05]}  Nh7 {[%clk 0:01:49]} 25. Qd2 {[%clk 0:01:49]}  Nxg5 {[%clk 0:01:47]} 26. hxg5 {[%clk 0:01:50]}  Qb6 {[%clk 0:01:47]} 27. Kh1 {[%clk 0:01:47]}  Nd3 {[%clk 0:01:42]} 28. Bxd3 {[%clk 0:01:38]}  cxd3 {[%clk 0:01:43]} 29. Ngf1 {[%clk 0:01:38]}  Qd4 {[%clk 0:01:42]} 30. Rxc8+ {[%clk 0:01:08]}  Rxc8 {[%clk 0:01:43]} 31. Ra5 {[%clk 0:01:05]}  Qb6 {[%clk 0:01:35]} 32. Qb4 {[%clk 0:01:04]}  Rc1 {[%clk 0:01:12]} 33. Kh2 {[%clk 0:00:52]}  Be5+ {[%clk 0:01:11]} 34. g3 {[%clk 0:00:50]}  Rc2+ {[%clk 0:00:59]} 35. Kh1 {[%clk 0:00:44]}  Rxb2 {[%clk 0:00:58]} 36. Qa3 {[%clk 0:00:40]}  d2 {[%clk 0:00:55]} 37. Ra8+ {[%clk 0:00:34]}  Kg7 {[%clk 0:00:54]} 0-1

[Event "December 12 Early 2023"]
[Site "https://www.chess.com"]
[Date "2023.12.12"]
[Round "7"]
[White "Aaditya Dhingra"]
[Black "Ivic, Velimir"]
[Result "0-1"]
[Board "29"]
[TimeControl "180+1"]
[WhiteFideId "25678191"]
[BlackFideId "950122"]
[WhiteElo "2690"]
[BlackElo "2946"]
[WhiteTeam "IND"]
[BlackTeam "SRB"]
[WhiteClock "0:01:01"]
[BlackClock "0:00:27"]

1. Nf3 {[%clk 0:03:00]}  Nc6 {[%clk 0:02:59]} 2. e4 {[%clk 0:02:59]}  e5 {[%clk 0:02:58]} 3. Bc4 {[%clk 0:02:59]}  Nf6 {[%clk 0:02:14]} 4. d3 {[%clk 0:02:57]}  Bc5 {[%clk 0:02:13]} 5. c3 {[%clk 0:02:56]}  O-O {[%clk 0:02:11]} 6. O-O {[%clk 0:02:56]}  d6 {[%clk 0:02:10]} 7. a4 {[%clk 0:02:54]}  a5 {[%clk 0:02:10]} 8. h3 {[%clk 0:02:53]}  h6 {[%clk 0:02:09]} 9. Re1 {[%clk 0:02:53]}  Be6 {[%clk 0:02:10]} 10. Nbd2 {[%clk 0:02:53]}  Bxc4 {[%clk 0:02:07]} 11. dxc4 {[%clk 0:02:49]}  Re8 {[%clk 0:02:08]} 12. Nf1 {[%clk 0:02:49]}  Qd7 {[%clk 0:02:05]} 13. Qd3 {[%clk 0:02:48]}  Qe6 {[%clk 0:02:03]} 14. Ne3 {[%clk 0:02:46]}  Bxe3 {[%clk 0:02:01]} 15. Bxe3 {[%clk 0:02:46]}  b6 {[%clk 0:02:01]} 16. Nh2 {[%clk 0:02:40]}  Rf8 {[%clk 0:01:58]} 17. Nf1 {[%clk 0:02:38]}  Ne7 {[%clk 0:01:57]} 18. Ng3 {[%clk 0:02:35]}  Nd7 {[%clk 0:01:57]} 19. b3 {[%clk 0:02:26]}  f5 {[%clk 0:01:52]} 20. exf5 {[%clk 0:02:25]}  Nxf5 {[%clk 0:01:53]} 21. Nxf5 {[%clk 0:02:25]}  Rxf5 {[%clk 0:01:53]} 22. Qd5 {[%clk 0:02:22]}  Re8 {[%clk 0:01:43]} 23. Red1 {[%clk 0:02:10]}  Rf7 {[%clk 0:01:42]} 24. b4 {[%clk 0:02:07]}  Qxd5 {[%clk 0:01:21]} 25. cxd5 {[%clk 0:02:03]}  Ra8 {[%clk 0:01:20]} 26. Rdb1 {[%clk 0:02:00]}  Nf6 {[%clk 0:01:19]} 27. bxa5 {[%clk 0:01:57]}  Rxa5 {[%clk 0:01:16]} 28. c4 {[%clk 0:01:57]}  Rf8 {[%clk 0:00:59]} 29. Bd2 {[%clk 0:01:53]}  Ra7 {[%clk 0:00:56]} 30. a5 {[%clk 0:01:48]}  Rfa8 {[%clk 0:00:57]} 31. Rb5 {[%clk 0:01:48]}  g5 {[%clk 0:00:49]} 32. f3 {[%clk 0:01:44]}  Kf7 {[%clk 0:00:49]} 33. Kf2 {[%clk 0:01:39]}  Nd7 {[%clk 0:00:50]} 34. Bc3 {[%clk 0:01:33]}  Ke7 {[%clk 0:00:39]} 35. h4 {[%clk 0:01:27]}  gxh4 {[%clk 0:00:28]} 36. Kg1 {[%clk 0:01:11]}  bxa5 {[%clk 0:00:19]} 37. Rbxa5 {[%clk 0:01:10]}  Rxa5 {[%clk 0:00:19]} 38. Rxa5 {[%clk 0:01:11]}  Rxa5 {[%clk 0:00:20]} 39. Bxa5 {[%clk 0:01:12]}  Nb6 {[%clk 0:00:21]} 40. Bxb6 {[%clk 0:01:11]}  cxb6 {[%clk 0:00:21]} 41. Kh2 {[%clk 0:01:03]}  Kf6 {[%clk 0:00:21]} 42. Kh3 {[%clk 0:01:03]}  Kg5 {[%clk 0:00:22]} 43. Kh2 {[%clk 0:00:59]}  e4 {[%clk 0:00:17]} 44. fxe4 {[%clk 0:00:57]}  Kf4 {[%clk 0:00:18]} 45. Kh3 {[%clk 0:00:57]}  Kxe4 {[%clk 0:00:18]} 46. Kxh4 {[%clk 0:00:57]}  Kd4 {[%clk 0:00:19]} 47. g4 {[%clk 0:00:57]}  Kxc4 {[%clk 0:00:20]} 48. Kh5 {[%clk 0:00:58]}  b5 {[%clk 0:00:21]} 49. Kxh6 {[%clk 0:00:58]}  b4 {[%clk 0:00:21]} 50. g5 {[%clk 0:00:59]}  b3 {[%clk 0:00:22]} 51. g6 {[%clk 0:00:59]}  b2 {[%clk 0:00:23]} 52. g7 {[%clk 0:01:00]}  b1=Q {[%clk 0:00:24]} 53. g8=Q {[%clk 0:01:01]}  Qh1+ {[%clk 0:00:24]} 54. Kg7 {[%clk 0:01:01]}  Qg2+ {[%clk 0:00:25]} 55. Kf8 {[%clk 0:01:02]}  Qxg8+ {[%clk 0:00:26]} 56. Kxg8 {[%clk 0:01:01]}  Kxd5 {[%clk 0:00:27]} 0-1

[Event "December 12 Early 2023"]
[Site "https://www.chess.com"]
[Date "2023.12.12"]
[Round "7"]
[White "Nagare Kaivalya Sandip"]
[Black "Chigaev, Maksim"]
[Result "0-1"]
[Board "30"]
[TimeControl "180+1"]
[WhiteFideId "25957929"]
[BlackFideId "4108116"]
[WhiteElo "2682"]
[BlackElo "2917"]
[WhiteTeam "IND"]
[BlackTeam "ESP"]
[WhiteClock "0:00:03"]
[BlackClock "0:00:07"]

1. e4 {[%clk 0:03:00]}  c5 {[%clk 0:02:52]} 2. Nf3 {[%clk 0:03:01]}  g6 {[%clk 0:02:50]} 3. d4 {[%clk 0:03:01]}  cxd4 {[%clk 0:02:50]} 4. Nxd4 {[%clk 0:03:02]}  Bg7 {[%clk 0:02:50]} 5. c4 {[%clk 0:03:01]}  Nc6 {[%clk 0:02:50]} 6. Be3 {[%clk 0:03:02]}  Qb6 {[%clk 0:02:51]} 7. Nb3 {[%clk 0:02:58]}  Qd8 {[%clk 0:02:51]} 8. Nc3 {[%clk 0:02:58]}  Bxc3+ {[%clk 0:02:45]} 9. bxc3 {[%clk 0:02:57]}  Nf6 {[%clk 0:02:45]} 10. Bd3 {[%clk 0:02:55]}  d6 {[%clk 0:02:44]} 11. O-O {[%clk 0:02:56]}  O-O {[%clk 0:02:43]} 12. h3 {[%clk 0:02:56]}  b6 {[%clk 0:02:43]} 13. f4 {[%clk 0:02:56]}  Bb7 {[%clk 0:02:43]} 14. a4 {[%clk 0:02:48]}  Rc8 {[%clk 0:02:36]} 15. Qe2 {[%clk 0:02:45]}  Qc7 {[%clk 0:02:27]} 16. Nd4 {[%clk 0:02:36]}  Na5 {[%clk 0:02:12]} 17. Nb5 {[%clk 0:02:31]}  Qb8 {[%clk 0:02:12]} 18. Bd4 {[%clk 0:02:29]}  Nb3 {[%clk 0:02:11]} 19. Rab1 {[%clk 0:02:19]}  Nc5 {[%clk 0:02:03]} 20. Bxf6 {[%clk 0:02:16]}  exf6 {[%clk 0:02:03]} 21. Bc2 {[%clk 0:02:17]}  Rfe8 {[%clk 0:02:01]} 22. Rfe1 {[%clk 0:01:55]}  Bxe4 {[%clk 0:01:55]} 23. Bxe4 {[%clk 0:01:54]}  Rxe4 {[%clk 0:01:56]} 24. Qd2 {[%clk 0:01:52]}  Rxc4 {[%clk 0:01:37]} 25. Nxd6 {[%clk 0:01:41]}  Rd8 {[%clk 0:01:37]} 26. Nxc4 {[%clk 0:01:34]}  Rxd2 {[%clk 0:01:37]} 27. Nxd2 {[%clk 0:01:35]}  Qxf4 {[%clk 0:01:37]} 28. Nf3 {[%clk 0:01:35]}  Nxa4 {[%clk 0:01:27]} 29. Rbd1 {[%clk 0:01:34]}  Nxc3 {[%clk 0:01:09]} 30. Rd8+ {[%clk 0:01:29]}  Kg7 {[%clk 0:01:10]} 31. Rd7 {[%clk 0:01:15]}  Ne4 {[%clk 0:01:02]} 32. Rxa7 {[%clk 0:01:11]}  f5 {[%clk 0:00:57]} 33. h4 {[%clk 0:00:45]}  h6 {[%clk 0:00:56]} 34. Rd1 {[%clk 0:00:38]}  Qe3+ {[%clk 0:00:41]} 35. Kh2 {[%clk 0:00:35]}  Nf6 {[%clk 0:00:39]} 36. Re1 {[%clk 0:00:21]}  Ng4+ {[%clk 0:00:39]} 37. Kh1 {[%clk 0:00:20]}  Qb3 {[%clk 0:00:38]} 38. Ree7 {[%clk 0:00:19]}  b5 {[%clk 0:00:34]} 39. Rab7 {[%clk 0:00:14]}  b4 {[%clk 0:00:33]} 40. Re1 {[%clk 0:00:11]}  f4 {[%clk 0:00:23]} 41. Nd4 {[%clk 0:00:07]}  Qg3 {[%clk 0:00:14]} 42. Nf3 {[%clk 0:00:07]}  Ne3 {[%clk 0:00:13]} 43. Re2 {[%clk 0:00:07]}  g5 {[%clk 0:00:13]} 44. hxg5 {[%clk 0:00:06]}  hxg5 {[%clk 0:00:14]} 45. Rxb4 {[%clk 0:00:07]}  g4 {[%clk 0:00:14]} 46. Nh2 {[%clk 0:00:06]}  Nf5 {[%clk 0:00:06]} 47. Rb1 {[%clk 0:00:04]}  Qh4 {[%clk 0:00:06]} 48. Kg1 {[%clk 0:00:04]}  Ng3 {[%clk 0:00:06]} 49. Rf2 {[%clk 0:00:05]}  Qg5 {[%clk 0:00:05]} 50. Re1 {[%clk 0:00:04]}  Qc5 {[%clk 0:00:05]} 51. Nf1 {[%clk 0:00:04]}  f5 {[%clk 0:00:05]} 52. Rd1 {[%clk 0:00:03]}  Ne4 {[%clk 0:00:06]} 53. Rd2 {[%clk 0:00:03]}  Nxf2 {[%clk 0:00:06]} 54. Rxf2 {[%clk 0:00:03]}  g3 {[%clk 0:00:06]} 55. Nxg3 {[%clk 0:00:02]}  fxg3 {[%clk 0:00:07]} 56. Kh1 {[%clk 0:00:03]}  gxf2 {[%clk 0:00:07]} 57. Kh2 {[%clk 0:00:03]}  f1=Q {[%clk 0:00:07]} 0-1

[Event "December 12 Early 2023"]
[Site "https://www.chess.com"]
[Date "2023.12.12"]
[Round "7"]
[White "Durarbayli, Vasif"]
[Black "Yeritsyaan"]
[Result "1-0"]
[Board "31"]
[TimeControl "180+1"]
[WhiteFideId "13402935"]
[WhiteElo "2900"]
[BlackElo "2670"]
[WhiteTeam "AZE"]
[WhiteClock "0:00:20"]
[BlackClock "0:00:03"]

1. e4 {[%clk 0:03:00]}  e5 {[%clk 0:02:56]} 2. Nf3 {[%clk 0:03:00]}  Nf6 {[%clk 0:02:55]} 3. Nxe5 {[%clk 0:03:00]}  d6 {[%clk 0:02:54]} 4. Nf3 {[%clk 0:03:00]}  Nxe4 {[%clk 0:02:53]} 5. d4 {[%clk 0:03:01]}  d5 {[%clk 0:02:51]} 6. Bd3 {[%clk 0:03:01]}  Bd6 {[%clk 0:02:51]} 7. O-O {[%clk 0:03:01]}  O-O {[%clk 0:02:52]} 8. c4 {[%clk 0:03:00]}  c6 {[%clk 0:02:51]} 9. Qc2 {[%clk 0:02:58]}  Re8 {[%clk 0:02:25]} 10. Nc3 {[%clk 0:02:40]}  Nxc3 {[%clk 0:02:11]} 11. bxc3 {[%clk 0:02:36]}  h6 {[%clk 0:02:06]} 12. h3 {[%clk 0:02:33]}  dxc4 {[%clk 0:02:06]} 13. Bxc4 {[%clk 0:02:33]}  Nd7 {[%clk 0:02:06]} 14. Bxh6 {[%clk 0:02:15]}  Nf8 {[%clk 0:01:28]} 15. Bg5 {[%clk 0:01:50]}  Be7 {[%clk 0:01:28]} 16. Bf4 {[%clk 0:01:42]}  Be6 {[%clk 0:01:21]} 17. Bd3 {[%clk 0:01:42]}  Bd6 {[%clk 0:01:18]} 18. Bg5 {[%clk 0:01:42]}  Be7 {[%clk 0:01:19]} 19. Be3 {[%clk 0:01:40]}  Bd5 {[%clk 0:01:14]} 20. Ne5 {[%clk 0:01:39]}  b5 {[%clk 0:01:09]} 21. a4 {[%clk 0:01:37]}  a6 {[%clk 0:01:07]} 22. c4 {[%clk 0:01:28]}  bxc4 {[%clk 0:01:06]} 23. Nxc4 {[%clk 0:01:29]}  Bf6 {[%clk 0:00:58]} 24. a5 {[%clk 0:01:24]}  Ne6 {[%clk 0:00:53]} 25. Rfd1 {[%clk 0:01:17]}  Ra7 {[%clk 0:00:35]} 26. Nb6 {[%clk 0:01:13]}  Rae7 {[%clk 0:00:34]} 27. Bxa6 {[%clk 0:01:04]}  g6 {[%clk 0:00:28]} 28. Nxd5 {[%clk 0:01:01]}  Qxd5 {[%clk 0:00:27]} 29. Bc4 {[%clk 0:01:01]}  Qh5 {[%clk 0:00:27]} 30. Bxe6 {[%clk 0:00:55]}  Rxe6 {[%clk 0:00:27]} 31. a6 {[%clk 0:00:55]}  Ra8 {[%clk 0:00:18]} 32. Ra4 {[%clk 0:00:47]}  Qd5 {[%clk 0:00:16]} 33. Qc5 {[%clk 0:00:39]}  Qb3 {[%clk 0:00:15]} 34. Rda1 {[%clk 0:00:22]}  Rxe3 {[%clk 0:00:14]} 35. fxe3 {[%clk 0:00:23]}  Qxe3+ {[%clk 0:00:15]} 36. Kh1 {[%clk 0:00:23]}  Be7 {[%clk 0:00:14]} 37. Qxc6 {[%clk 0:00:21]}  Rf8 {[%clk 0:00:14]} 38. a7 {[%clk 0:00:20]}  Qf4 {[%clk 0:00:08]} 39. Qf3 {[%clk 0:00:20]}  Qg5 {[%clk 0:00:05]} 40. a8=Q {[%clk 0:00:19]}  Rxa8 {[%clk 0:00:06]} 41. Rxa8+ {[%clk 0:00:20]}  Kg7 {[%clk 0:00:07]} 42. R8a7 {[%clk 0:00:20]}  Kg8 {[%clk 0:00:05]} 43. Rf1 {[%clk 0:00:18]}  f5 {[%clk 0:00:03]} 44. Qa8+ {[%clk 0:00:18]}  Kf7 {[%clk 0:00:03]} 45. Qb7 {[%clk 0:00:19]}  Qf6 {[%clk 0:00:02]} 46. Qxe7+ {[%clk 0:00:19]}  Qxe7 {[%clk 0:00:03]} 47. Rxe7+ {[%clk 0:00:20]}  Kxe7 {[%clk 0:00:03]} 48. Rd1 {[%clk 0:00:20]} 1-0